[Event "Polish University-ch Teams 2024"]
[Site "Lublin"]
[Date "2024.02.25"]
[Round "6.8"]
[White "Garbowski, Jakub"]
[Black "Szustakowski, Antoni"]
[Result "0-1"]
[ECO "C01"]
[WhiteElo "2119"]
[BlackElo "2354"]
[Annotator "TA"]
[PlyCount "94"]
[EventDate "2024.02.22"]
[EventType "team-tourn"]
[EventCountry "POL"]
[SourceTitle "playchess.com"]
[Source "ChessBase"]
[SourceQuality "1"]
[TimeControl "900+5"]

{[%evp 14,94,-2,-14,0,0,0,0,0,-12,-9,-22,0,-17,33,6,4,4,2,0,0,0,0,0,-4,-6,0,-7,0,0,0,0,0,0,40,44,37,33,25,15,28,4,6,0,7,0,0,0,0,0,0,0,0,0,0,0,0,0,0,0,0,0,0,0,0,-8,-8,-8,-8,-211,-156,-29974,-1162,-1673,-1623,-1775,-1946,-12797,-5425,-29960,-12844,-6386,-5505]} 1. e4 {[%emt 0:02:21]} e6 {[%emt 0:00:05]} 2. d4 {[%emt 0:00:15]} d5 {[%emt 0:00:05]} 3. Bd3 {[%emt 0:00:47][%cal Bf1d3,Bd3e4,Be4f3][%mdl 32]} dxe4 {[%emt 0:00:21]} 4. Bxe4 {[%emt 0:00:01]} Nf6 {[%emt 0:00:02]} 5. Bf3 {[%emt 0:00:02]} c5 {[%emt 0:00:15]} 6. Ne2 {[%emt 0:00:05]} Nc6 {[%emt 0:00:14]} 7. c3 {[%emt 0:00:32]} cxd4 {[%emt 0:00:54]} 8. cxd4 {[%emt 0:00:09]} Be7 {[%emt 0:00:06]} 9. Nbc3 {[%emt 0:01:26]} O-O {[%emt 0:00:41]} 10. O-O {[%emt 0:01:26]} Qb6 {[%emt 0:01:58] The position is equal.} 11. Rb1 {[%emt 0:04:07]} Rd8 {[%emt 0:00:17]} 12. Be3 {[%emt 0:00:05]} Qa5 {[%emt 0:00:40]} 13. Qb3 {[%emt 0:00:41]} Qb4 {[%emt 0:02:57]} (13... Qa6 $11) 14. Qxb4 {[%emt 0:01:22]} Nxb4 {[%emt 0:00:21]} 15. Rfd1 {[%emt 0:00:04]} Nbd5 {[%emt 0:00:16]} 16. Nf4 {[%emt 0:00:48][%cal Be2f4,Bf4d3,Bd3e5,Be5c4][%mdl 32]} Nxe3 {[%emt 0:01:14]} 17. fxe3 {[%emt 0:00:02]} Rb8 {[%emt 0:00:06]} 18. Rbc1 {[%emt 0:01:24]} Bd7 {[%emt 0:00:12]} 19. Nd3 {[%emt 0:00:04]} Be8 {[%emt 0:01:26]} 20. Ne5 {[%emt 0:00:29]} Bd6 {[%emt 0:02:12]} 21. Nc4 {[%emt 0:00:01]} Bc7 {[%emt 0:00:01]} 22. a4 {[%emt 0:00:01][%cal Ba2a4,Ba4a5][%mdl 32]} a6 {[%emt 0:01:50]} 23. a5 {[%emt 0:00:01]} Bb5 {[%emt 0:00:21]} 24. Nxb5 {[%emt 0:00:19]} axb5 {[%emt 0:00:01]} 25. Nb6 {[%emt 0:00:01]} Bxb6 {[%emt 0:00:01]} 26. axb6 {[%emt 0:00:01]} Rd6 {[%emt 0:00:01]} 27. Rc7 {[%emt 0:00:07]} Rxb6 {[%emt 0:00:01]} 28. Rdc1 {[%emt 0:00:01] [#] Rc8+ would now be deadly.} Kf8 {[%emt 0:00:24]} 29. Rc8+ {[%emt 0:00:17]} Rxc8 {[%emt 0:00:01]} 30. Rxc8+ $11 {[%emt 0:00:01][%mdl 4096] Endgame. KRB-KRN} Ke7 {[%emt 0:00:01]} 31. Rc7+ {[%emt 0:00:01]} Nd7 {[%emt 0:00:05]} 32. Rxb7 {[%emt 0:00:04]} Rxb7 {[%emt 0:00:01]} 33. Bxb7 {[%emt 0:00:01] KB-KN} b4 {[%emt 0:00:20]} 34. b3 {[%emt 0:00:08]} Kd6 {[%emt 0:00:02]} 35. Kf2 {[%emt 0:00:12]} e5 {[%emt 0:00:18]} 36. Ke2 {[%emt 0:00:17]} Nb6 {[%emt 0:00:01]} 37. Kd3 {[%emt 0:00:06]} f5 {[%emt 0:00:01][%cal Bf7f5,Bf5f4][%mdl 32]} 38. e4 {[%emt 0:00:06]} f4 {[%emt 0:00:04]} 39. h4 {[%emt 0:00:14]} g6 {[%emt 0:00:03]} 40. Ba6 $1 {[%emt 0:00:03]} h6 {[%emt 0:00:01] Threatening ...g5.} 41. Bc4 $2 {[%emt 0:00:02]} (41. Bb5 $1 $11) 41... g5 {[%emt 0:00:03]} 42. h5 $2 {[%emt 0:00:08] [#] This move loses the game for White.} (42. hxg5 $17 hxg5 43. dxe5+ Kxe5 44. Bb5) 42... Nd7 {[%emt 0:00:13]} (42... Nxc4 $142 43. bxc4 exd4 44. Kxd4 g4 45. e5+ Ke6 46. Ke4 f3 (46... b3 {gets mated.} 47. Kd3 f3 48. gxf3 gxf3 49. c5 b2 50. Kc2 f2 51. Kb1 f1=Q+ 52. Kxb2 Qc4 53. c6 Kxe5 54. c7 Kd4 55. c8=B Qxc8 56. Kb3 Qc3+ 57. Ka2 Qb4 58. Ka1 Kc3 59. Ka2 Qb2#) 47. gxf3 gxf3 48. Kxf3 b3 (48... Kxe5 49. Ke3 $11) 49. Kf4 b2 50. c5 b1=Q (50... b1=B $2 51. c6 $19) 51. c6 Qc1+ 52. Ke4 Qxc6+ 53. Ke3 Qc3+ (53... Kxe5 54. Kd3 Qc5 55. Ke2 Qc3 56. Kf2 Kf4 57. Kf1 Kf3 58. Kg1 Qg7+ 59. Kh2 Qg2#) 54. Ke4 Qd2 (54... Qxe5+ 55. Kd3 Kd5 56. Kc2 Kc4 57. Kd2 Qe7 58. Kc1 Qe2 59. Kb1 Kc3 60. Kc1 Qf1#) (54... Qe1+ 55. Kd4 Qb4+ 56. Kd3 Kxe5 57. Ke2 Qe4+ 58. Kd2 Kd4 59. Kc1 Kc3 60. Kd1 Qe8 61. Kc1 Qe1#) 55. Kf3 Kxe5 56. Kg3 Ke4 57. Kh4 Kf3 58. Kh3 Qg2+ 59. Kh4 Qh2#) 43. Bf7 {[%emt 0:00:05]} Nf6 {[%emt 0:00:04]} 44. Bg6 {[%emt 0:00:08]} g4 {[%emt 0:00:03] Hoping for ...g3.} 45. Bf5 {[%emt 0:00:04]} g3 {[%emt 0:00:07]} ({Inferior is} 45... Nxh5 46. Bxg4 Ng3 47. Kc4 $11) 46. dxe5+ {[%emt 0:00:08]} Kxe5 {[%emt 0:00:01] ( -> ...f3)} 47. Ke2 {[%emt 0:00:07]} Nxe4 {[%emt 0:00:04] Weighted Error Value: White=0.77/Black=0.33.  Loses game:     	White=2     	---        Mistake:       	---       	Black=2      Inaccurate:     	White=2     	Black=1      OK:         	White=11    	Black=18     Best:        	---       	Black=1      Strong:       	White=1     	---} 0-1

[Event "Polish University-ch Teams 2024"]
[Site "Lublin"]
[Date "2024.02.25"]
[Round "6.9"]
[White "Koziorowicz, Michal"]
[Black "Walaszczyk, Aleksander"]
[Result "1-0"]
[ECO "B12"]
[WhiteElo "2324"]
[BlackElo "1782"]
[Annotator "TA"]
[PlyCount "101"]
[EventDate "2024.02.22"]
[EventType "team-tourn"]
[EventCountry "POL"]
[SourceTitle "playchess.com"]
[Source "ChessBase"]
[SourceQuality "1"]
[TimeControl "900+5"]

{[%evp 9,101,0,0,-10,5,0,9,0,-6,-14,63,56,75,0,63,-8,-13,-17,0,-6,0,-6,-18,-31,14,-5,37,32,37,32,25,21,44,32,18,33,101,104,100,90,113,32,106,93,102,106,232,60,329,329,305,302,296,347,347,340,601,318,321,320,317,269,358,352,364,353,468,416,495,452,543,533,1072,1063,1035,725,857,629,777,754,4929,4890,2777,2004,1487,1279,11760,11760,11745,11745,11731,11731,7841,7034]} 1. e4 {[%emt 0:01:46]} c6 {[%emt 0:00:02]} 2. d4 {[%emt 0:00:04]} d5 {[%emt 0:00:01]} 3. e5 {[%emt 0:00:01]} c5 {[%emt 0:00:01]} 4. dxc5 {[%emt 0:00:09]} e6 {[%emt 0:00:02]} 5. a3 {[%emt 0:00:17]} Bxc5 {[%emt 0:00:03]} 6. b4 {[%emt 0:00:11]} Be7 {[%emt 0:00:02]} 7. Nf3 {[%emt 0:00:07]} a5 {[%emt 0:00:01]} 8. b5 {[%emt 0:00:21] The position is equal.} Nd7 {[%emt 0:00:02]} 9. Nbd2 {[%emt 0:00:51]} Nb6 {[%emt 0:04:44]} (9... Nh6 $11) 10. Bd3 $14 {[%emt 0:00:37]} Nh6 {[%emt 0:00:20]} 11. Nb3 {[%emt 0:00:33]} ({White should play} 11. a4 $16) 11... Nf5 {[%emt 0:00:25]} (11... a4 $11) 12. O-O {[%emt 0:02:37]} ({Better is} 12. a4 $1 $14) 12... a4 $11 {[%emt 0:01:44]} 13. Nbd4 {[%emt 0:00:03]} O-O {[%emt 0:00:49]} 14. Re1 {[%emt 0:00:34]} Nc4 {[%emt 0:03:13]} 15. Nxf5 {[%emt 0:01:30]} exf5 {[%emt 0:00:01]} 16. Nd4 {[%emt 0:00:02]} g6 {[%emt 0:00:39]} 17. Qf3 {[%emt 0:01:25]} Qb6 {[%emt 0:01:03]} 18. c3 {[%emt 0:00:28]} Be6 {[%emt 0:00:36]} 19. Bxc4 {[%emt 0:00:31]} dxc4 {[%emt 0:00:02]} 20. Be3 {[%emt 0:00:13][%cal Od4f5] Strongly threatening Nxf5!} Qc7 {[%emt 0:02:08] [#]} 21. b6 $1 $36 {[%emt 0:00:43][%mdl 2048] White fights for an advantage.} Qc8 {[%emt 0:00:13]} (21... Qxb6 22. Nxf5 Qd8 23. Red1 Bxf5 24. Rxd8 Rfxd8 25. Qxb7 Bxa3 26. h3 $11 (26. e6 Bxe6 27. Bd4 Bd6 $11)) (21... Qb8 22. Nxe6) 22. Nb5 {[%emt 0:00:17] Black is weak on the dark squares} Qc6 {[%emt 0:00:33] Prevents Nd6} (22... Rd8 $14) 23. Qxc6 $16 {[%emt 0:00:28]} bxc6 {[%emt 0:00:01]} 24. Nd6 {[%emt 0:00:27] And now b7 would win.} Ra5 {[%emt 0:00:09]} 25. Bd4 {[%emt 0:00:17]} ({But not} 25. b7 $6 Rb8 $14) (25. f4 $16) 25... c5 {[%emt 0:00:09]} (25... Rb8 $14) 26. Be3 {[%emt 0:00:04]} Rb8 {[%emt 0:00:01]} 27. Rab1 {[%emt 0:00:04] White has more active pieces.} Bd5 {[%emt 0:00:04]} (27... f4 $16 {was called for.} 28. Bxf4 Ra6) 28. Bf4 $2 {[%emt 0:00:13]} (28. b7 $18) 28... Bd8 $2 {[%emt 0:00:01][%mdl 8192] [#]} (28... Be6 $1 $14) 29. e6 $1 $18 {[%emt 0:00:38][%mdl 512]} fxe6 {[%emt 0:00:04] [#]} 30. Nxc4 {[%emt 0:00:04][%cal Bd6c4,Bc4e5,Be5d7,Bd7c5][%mdl 544]} Raa8 {[%emt 0:00:05][%cal Ba5a8,Ba8b8,Bb8b7][%mdl 32]} 31. Bxb8 {[%emt 0:00:17]} Rxb8 {[%emt 0:00:00]} 32. Ne5 {[%emt 0:00:04] Hoping for c4.} Bb3 {[%emt 0:00:09]} (32... Rxb6 33. Rxb6 (33. c4 Rxb1 34. Rxb1 Bc7 $18) 33... Bxb6) 33. Nd7 {[%emt 0:00:08]} Rb7 {[%emt 0:00:07]} 34. Nxc5 {[%emt 0:00:02]} Rxb6 {[%emt 0:00:02]} 35. Re2 {[%emt 0:00:21]} Rc6 {[%emt 0:00:06]} 36. Nxb3 {[%emt 0:00:03]} axb3 {[%emt 0:00:07]} 37. Rxb3 {[%emt 0:00:01][%mdl 4096] Endgame. KRR-KRB} Bf6 {[%emt 0:00:05]} 38. Rc2 {[%emt 0:00:02]} Rd6 {[%emt 0:00:03]} 39. Rb1 {[%emt 0:00:03] Repels Rd1+. White is clearly winning.} Rd3 {[%emt 0:00:02]} 40. Kf1 {[%emt 0:00:21]} Rxc3 {[%emt 0:00:13]} 41. Rxc3 {[%emt 0:00:02]} Bxc3 {[%emt 0:00:01] KR-KB} 42. Rb7 {[%emt 0:00:07]} h5 {[%emt 0:00:15]} 43. Ke2 {[%emt 0:00:02]} e5 {[%emt 0:00:02]} 44. Kd3 {[%emt 0:00:03]} Bd4 {[%emt 0:00:00]} 45. f3 {[%emt 0:00:09]} Kf8 {[%emt 0:00:02]} 46. Kc4 {[%emt 0:00:05]} Bg1 {[%emt 0:00:05]} 47. h3 {[%emt 0:00:02] a4 is the strong threat.} e4 {[%emt 0:00:01]} 48. fxe4 {[%emt 0:00:02] Intending a4 and mate.} fxe4 {[%emt 0:00:01]} 49. a4 {[%emt 0:00:02][%cal Ba3a4,Ba4a5][%mdl 32] White threatens a5 and mate.} Ke8 {[%emt 0:00:04]} 50. a5 {[%emt 0:00:05] Threatening mate with a6.} e3 {[%emt 0:00:09]} 51. Kd3 {[%emt 0:00:02] Weighted Error Value: White=0.39/Black=0.61.  Loses game:     	---       	Black=1      Missed win:     	White=1     	---        Mistake:       	White=3     	Black=6      Inaccurate:     	White=1     	Black=5      OK:         	White=16    	Black=7      Best:        	White=2     	Black=1} 1-0

[Event "Polish University-ch Teams 2024"]
[Site "Lublin"]
[Date "2024.02.25"]
[Round "6.10"]
[White "Kroliczek, Gabriela"]
[Black "Karpus, Michal"]
[Result "1-0"]
[ECO "C55"]
[WhiteElo "1928"]
[BlackElo "2243"]
[Annotator "RC"]
[PlyCount "87"]
[EventDate "2024.02.22"]
[EventType "team-tourn"]
[EventCountry "POL"]
[SourceTitle "playchess.com"]
[Source "ChessBase"]
[SourceQuality "1"]
[TimeControl "900+5"]

1. e4 {[%emt 0:02:29]} e5 {[%emt 0:00:02]} 2. Nf3 {[%emt 0:00:02]} Nc6 {[%emt 0:00:02]} 3. Bc4 {[%emt 0:00:03]} Nf6 {[%emt 0:00:10]} 4. d3 {[%emt 0:00:10]} h6 {[%emt 0:00:04]} 5. O-O {[%emt 0:00:27]} d6 {[%emt 0:00:02]} 6. c3 {[%emt 0:00:02]} g5 {[%emt 0:00:06]} 7. Be3 {[%emt 0:01:58]} Bg7 {[%emt 0:00:08]} 8. Nbd2 {[%emt 0:00:23]} g4 {[%emt 0:00:26]} 9. Ne1 {[%emt 0:00:02]} d5 {[%emt 0:00:08]} 10. Bb3 {[%emt 0:01:26]} O-O {[%emt 0:01:15]} 11. Qe2 {[%emt 0:01:52]} Be6 {[%emt 0:02:18]} 12. f4 {[%emt 0:02:33]} exf4 {[%emt 0:05:22]} 13. Bxf4 {[%emt 0:00:01]} d4 {[%emt 0:01:07]} 14. Rc1 {[%emt 0:01:11]} Qd7 {[%emt 0:01:27]} 15. Nc4 {[%emt 0:01:19]} Nh5 {[%emt 0:00:12]} 16. Bd2 {[%emt 0:00:01]} Kh8 {[%emt 0:00:45]} 17. g3 {[%emt 0:00:30]} f5 {[%emt 0:00:14]} 18. Ng2 {[%emt 0:00:10]} Rad8 {[%emt 0:00:28]} 19. Nh4 {[%emt 0:00:36]} Ne7 {[%emt 0:01:53]} 20. exf5 {[%emt 0:00:35]} Bxf5 {[%emt 0:00:10]} 21. Ne5 {[%emt 0:00:40]} Bxe5 {[%emt 0:00:24]} 22. Qxe5+ {[%emt 0:00:01]} Kh7 {[%emt 0:00:06]} 23. Nxf5 {[%emt 0:00:17]} Rxf5 {[%emt 0:00:02]} 24. Rxf5 {[%emt 0:00:02]} Nxf5 {[%emt 0:00:03]} 25. Rf1 {[%emt 0:00:07]} Nhg7 {[%emt 0:00:02]} 26. Bc4 {[%emt 0:00:11]} Re8 {[%emt 0:00:05]} 27. Qf4 {[%emt 0:00:02]} Re2 {[%emt 0:00:09]} 28. Rf2 {[%emt 0:00:01]} Qe7 {[%emt 0:00:03]} 29. Bd5 {[%emt 0:00:04]} Rxf2 {[%emt 0:00:08]} 30. Kxf2 {[%emt 0:00:12]} c5 {[%emt 0:00:08]} 31. Be4 {[%emt 0:00:01]} Qe6 {[%emt 0:00:01]} 32. b3 {[%emt 0:00:07]} Kh8 {[%emt 0:00:02]} 33. Qb8+ {[%emt 0:00:03]} Kh7 {[%emt 0:00:01]} 34. Qxb7 {[%emt 0:00:08]} Qf6 {[%emt 0:00:03]} 35. Kg2 {[%emt 0:00:04]} dxc3 {[%emt 0:00:01]} 36. Bf4 {[%emt 0:00:04]} c2 {[%emt 0:00:01]} 37. Qc7 {[%emt 0:00:07]} Kg6 {[%emt 0:00:12]} 38. Qxc5 {[%emt 0:00:02]} Qb2 {[%emt 0:00:01]} 39. Bd2 {[%emt 0:00:10]} Qxa2 {[%emt 0:00:17]} 40. b4 {[%emt 0:00:02]} Qb1 {[%emt 0:00:07]} 41. Qc6+ {[%emt 0:00:06]} Kh7 {[%emt 0:00:01]} 42. Qxh6+ {[%emt 0:00:03]} Kg8 {[%emt 0:00:01]} 43. Qc6 {[%emt 0:00:05]} Qb3 {[%emt 0:00:14]} 44. Bd5+ {[%emt 0:00:04]} 1-0

[Event "Polish University-ch Teams 2024"]
[Site "Lublin"]
[Date "2024.02.25"]
[Round "6.11"]
[White "Syrkiewicz, Michal"]
[Black "Lendzion, Kamil"]
[Result "1-0"]
[ECO "B93"]
[WhiteElo "2074"]
[BlackElo "1846"]
[Annotator "NA RC"]
[PlyCount "121"]
[EventDate "2024.02.22"]
[EventType "team-tourn"]
[EventCountry "POL"]
[SourceTitle "playchess.com"]
[Source "ChessBase"]
[SourceQuality "1"]
[TimeControl "900+5"]

1. e4 {[%emt 0:00:02]} c5 {[%emt 0:02:00]} 2. Nf3 {[%emt 0:00:11]} d6 {[%emt 0:00:01]} 3. d4 {[%emt 0:00:10]} cxd4 {[%emt 0:00:02]} 4. Nxd4 {[%emt 0:00:02]} Nf6 {[%emt 0:00:01]} 5. Nc3 {[%emt 0:00:02]} a6 {[%emt 0:00:01]} 6. f4 {[%emt 0:00:55]} Nc6 {[%emt 0:00:47]} 7. Nf3 {[%emt 0:02:30]} g6 {[%emt 0:01:43]} 8. Be3 {[%emt 0:01:33]} Bg7 {[%emt 0:00:58]} 9. Bd3 {[%emt 0:02:05]} O-O {[%emt 0:00:10]} 10. O-O {[%emt 0:00:36]} Ng4 {[%emt 0:00:42]} 11. Qd2 {[%emt 0:01:12]} Nxe3 {[%emt 0:00:02]} 12. Qxe3 {[%emt 0:00:01]} Nb4 {[%emt 0:01:56]} 13. Kh1 {[%emt 0:00:34]} Bd7 {[%emt 0:00:48]} 14. a3 {[%emt 0:00:48]} Nxd3 {[%emt 0:00:03]} 15. cxd3 {[%emt 0:00:02]} Rc8 {[%emt 0:00:35]} 16. d4 {[%emt 0:00:54]} e6 {[%emt 0:01:23]} 17. Rac1 {[%emt 0:00:55]} Qb6 {[%emt 0:00:12]} 18. Qd2 {[%emt 0:00:35]} Rc4 {[%emt 0:00:52]} 19. Rfd1 {[%emt 0:00:47]} Rfc8 {[%emt 0:00:01]} 20. e5 {[%emt 0:00:29]} d5 {[%emt 0:00:51]} 21. Ne2 {[%emt 0:00:56]} Ba4 {[%emt 0:00:19]} 22. Rxc4 {[%emt 0:00:09]} Rxc4 {[%emt 0:00:01]} 23. Rc1 {[%emt 0:00:01]} Qb3 {[%emt 0:01:03]} 24. Nc3 {[%emt 0:00:20]} Bd7 {[%emt 0:00:16]} 25. h3 {[%emt 0:00:20]} b5 {[%emt 0:00:11]} 26. Kh2 {[%emt 0:00:20]} Bf8 {[%emt 0:00:30]} 27. Re1 {[%emt 0:00:42]} a5 {[%emt 0:00:01]} 28. Re3 {[%emt 0:00:01]} Kg7 {[%emt 0:01:16]} 29. Nxd5 {[%emt 0:00:07]} Qc2 {[%emt 0:00:20]} 30. Qxc2 {[%emt 0:00:09]} Rxc2 {[%emt 0:00:01]} 31. Nf6 {[%emt 0:00:01]} Bc6 {[%emt 0:00:03]} 32. Rb3 {[%emt 0:00:09]} a4 {[%emt 0:00:04]} 33. Re3 {[%emt 0:00:03]} h6 {[%emt 0:00:15]} 34. Ne4 {[%emt 0:00:03]} Bd5 {[%emt 0:00:05]} 35. Nc3 {[%emt 0:00:03]} Rxb2 {[%emt 0:00:09]} 36. Nxd5 {[%emt 0:00:01]} exd5 {[%emt 0:00:00]} 37. e6 {[%emt 0:00:07]} fxe6 {[%emt 0:00:03]} 38. Rxe6 {[%emt 0:00:01]} Bxa3 {[%emt 0:00:01]} 39. Ne5 {[%emt 0:00:01]} b4 {[%emt 0:00:05]} 40. Rxg6+ {[%emt 0:00:01]} Kf8 {[%emt 0:00:01]} 41. Ra6 {[%emt 0:00:05]} b3 {[%emt 0:00:08]} 42. Rxa4 {[%emt 0:00:02]} Bd6 {[%emt 0:00:06]} 43. Ra6 {[%emt 0:00:12]} Ke7 {[%emt 0:00:17]} 44. Rb6 {[%emt 0:00:08]} Rb1 {[%emt 0:00:05]} 45. Kg3 {[%emt 0:00:09]} b2 {[%emt 0:00:00]} 46. Nd3 {[%emt 0:00:04]} Ba3 {[%emt 0:00:03]} 47. Rb3 {[%emt 0:00:08]} Ra1 {[%emt 0:00:14]} 48. Nxb2 {[%emt 0:00:04]} Bxb2 {[%emt 0:00:05]} 49. Rxb2 {[%emt 0:00:01]} Rd1 {[%emt 0:00:11]} 50. Rb4 {[%emt 0:00:02]} Rd2 {[%emt 0:00:03]} 51. Kf3 {[%emt 0:00:07]} Ke6 {[%emt 0:00:16]} 52. Rb6+ {[%emt 0:00:02]} Kf7 {[%emt 0:00:00]} 53. Rxh6 {[%emt 0:00:02]} Rxd4 {[%emt 0:00:00]} 54. g4 {[%emt 0:00:14]} Kg7 {[%emt 0:00:00]} 55. Rh5 {[%emt 0:00:04]} Kg6 {[%emt 0:00:00]} 56. Ke3 {[%emt 0:00:01]} Rd1 {[%emt 0:00:01]} 57. f5+ {[%emt 0:00:07]} Kg7 {[%emt 0:00:01]} 58. Kf4 {[%emt 0:00:13]} d4 {[%emt 0:00:03]} 59. Kg5 {[%emt 0:00:07]} d3 {[%emt 0:00:07]} 60. f6+ {[%emt 0:00:00]} Kg8 {[%emt 0:00:05]} 61. Kg6 {[%emt 0:00:01]} 1-0

[Event "Polish University-ch Teams 2024"]
[Site "Lublin"]
[Date "2024.02.25"]
[Round "6.12"]
[White "Kucharska, Honorata"]
[Black "Harazinska, Magdalena"]
[Result "1/2-1/2"]
[ECO "A31"]
[WhiteElo "2137"]
[BlackElo "1950"]
[Annotator "RC"]
[PlyCount "103"]
[EventDate "2024.02.22"]
[EventType "team-tourn"]
[EventCountry "POL"]
[SourceTitle "playchess.com"]
[Source "ChessBase"]
[SourceQuality "1"]
[TimeControl "900+5"]

1. e4 {[%emt 0:02:02]} c5 {[%emt 0:00:01]} 2. Nf3 {[%emt 0:00:04]} a6 {[%emt 0:00:08]} 3. c4 {[%emt 0:00:17]} e6 {[%emt 0:00:09]} 4. Nc3 {[%emt 0:00:06]} Qc7 {[%emt 0:00:10]} 5. d4 {[%emt 0:00:22]} cxd4 {[%emt 0:00:02]} 6. Nxd4 {[%emt 0:00:01]} Nf6 {[%emt 0:00:09]} 7. a3 {[%emt 0:01:28]} Be7 {[%emt 0:00:13]} 8. Be2 {[%emt 0:00:04]} O-O {[%emt 0:00:06]} 9. O-O {[%emt 0:00:03]} d6 {[%emt 0:00:30]} 10. Be3 {[%emt 0:00:09]} b6 {[%emt 0:00:13]} 11. Rc1 {[%emt 0:00:19]} Bb7 {[%emt 0:00:02]} 12. f3 {[%emt 0:00:02]} Nbd7 {[%emt 0:00:12]} 13. b4 {[%emt 0:00:19]} Rac8 {[%emt 0:00:07]} 14. Qd2 {[%emt 0:00:15]} Qb8 {[%emt 0:00:22]} 15. Rfd1 {[%emt 0:00:29]} Bd8 {[%emt 0:00:21]} 16. Bf1 {[%emt 0:01:16]} Bc7 {[%emt 0:00:02]} 17. g3 {[%emt 0:00:11]} Rfe8 {[%emt 0:01:57]} 18. Qf2 {[%emt 0:00:55]} Kh8 {[%emt 0:02:49]} 19. Bg2 {[%emt 0:02:04]} Rg8 {[%emt 0:03:11]} 20. Nb3 {[%emt 0:01:03]} Ne5 {[%emt 0:01:23]} 21. Na4 {[%emt 0:00:37]} b5 {[%emt 0:00:20]} 22. cxb5 {[%emt 0:00:27]} axb5 {[%emt 0:00:01]} 23. Nb2 {[%emt 0:00:01]} d5 {[%emt 0:01:17]} 24. exd5 {[%emt 0:00:56]} Bxd5 {[%emt 0:00:01]} 25. Nc5 {[%emt 0:00:16]} Qa8 {[%emt 0:00:02]} 26. Nbd3 {[%emt 0:00:58]} Nxf3+ {[%emt 0:00:23]} 27. Bxf3 {[%emt 0:00:08]} Bxf3 {[%emt 0:00:06]} 28. Rf1 {[%emt 0:00:01]} Bh1 {[%emt 0:01:04]} 29. Bd4 {[%emt 0:00:32]} Ne4 {[%emt 0:00:41]} 30. Nxe4 {[%emt 0:00:09]} Bxe4 {[%emt 0:00:04]} 31. Nc5 {[%emt 0:00:01]} Bg6 {[%emt 0:00:11]} 32. Qb2 {[%emt 0:00:11]} e5 {[%emt 0:00:17]} 33. Bxe5 {[%emt 0:00:43]} Bxe5 {[%emt 0:00:01]} 34. Qxe5 {[%emt 0:00:03]} Qxa3 {[%emt 0:00:03]} 35. Qf4 {[%emt 0:00:01]} Rge8 {[%emt 0:00:11]} 36. Rce1 {[%emt 0:00:05]} Qc3 {[%emt 0:00:18]} 37. Rxe8+ {[%emt 0:00:14]} Rxe8 {[%emt 0:00:02]} 38. Rc1 {[%emt 0:00:05]} Re1+ {[%emt 0:00:10]} 39. Rxe1 {[%emt 0:00:02]} Qxe1+ {[%emt 0:00:02]} 40. Kg2 {[%emt 0:00:04]} Qe2+ {[%emt 0:00:05]} 41. Kg1 {[%emt 0:00:01]} h6 {[%emt 0:00:09]} 42. Qd4 {[%emt 0:00:10]} Kh7 {[%emt 0:00:09]} 43. Qf4 {[%emt 0:00:09]} f6 {[%emt 0:00:16]} 44. Qd4 {[%emt 0:00:03]} Bf5 {[%emt 0:00:12]} 45. Qf2 {[%emt 0:00:15]} Qd1+ {[%emt 0:00:08]} 46. Qf1 {[%emt 0:00:05]} Qd4+ {[%emt 0:00:03]} 47. Qf2 {[%emt 0:00:02]} Qd5 {[%emt 0:00:09]} 48. Qf4 {[%emt 0:00:13]} Bc2 {[%emt 0:00:12]} 49. Qf2 {[%emt 0:00:09]} Qd1+ {[%emt 0:00:01]} 50. Kg2 {[%emt 0:00:09]} Qd5+ {[%emt 0:00:12]} 51. Kg1 {[%emt 0:00:02]} Bg6 {[%emt 0:00:07]} 52. Qf4 {[%emt 0:00:04]} 1/2-1/2